[Event "4NCL Div 1 2024-25"]
[Site "England"]
[Date "2025.04.05"]
[Round "7.12"]
[White "Jaracz, Pawel"]
[Black "Tayar, Jonathan"]
[Result "1-0"]
[Annotator "TA"]
[ECO "B22"]
[WhiteElo "2473"]
[BlackElo "2344"]
[PlyCount "81"]
[EventDate "2024.11.23"]
[EventType "team-tourn"]
[EventCountry "ENG"]
[SourceTitle "playchess.com"]
[Source "ChessBase"]
[SourceQuality "1"]
[TimeControl "40/6000+30:3000+30"]

{[%evp 12,81,10,0,48,23,29,54,154,151,154,166,152,158,156,164,195,185,180,185,231,231,219,220,214,218,302,295,295,287,332,326,320,319,327,301,310,293,324,324,326,323,333,293,370,362,358,310,358,320,416,392,458,444,453,433,686,684,672,470,750,626,716,593,29995,29996,29996,29997,29997,29998,29998,29999]} 1. e4 {[%emt 0:11:16]} c5 {[%emt 0:10:07]} 2. c3 {[%emt 0:01:41]} d5 {[%emt 0:04:04]} 3. exd5 {[%emt 0:00:07]} Qxd5 {[%emt 0:00:24]} 4. d4 {[%emt 0:01:15]} Nf6 {[%emt 0:01:20]} 5. Nf3 {[%emt 0:00:10]} Bg4 {[%emt 0:02:01]} 6. dxc5 {[%emt 0:00:58]} Qxc5 {[%emt 0:04:21]} 7. Na3 {[%emt 0:00:39] 7.Na3 has become a bit dusty these days.} Nbd7 {[%emt 0:03:48] B22: Sicilian: 2 c3.} (7... a6 $11 {is more appropriate.}) 8. Be3 {[%emt 0:02:05]} Qc7 {[%emt 0:02:05]} 9. h3 {[%emt 0:03:32][%cal Oa3b5]} Bh5 {[%emt 0:02:10]} ({Black should try} 9... Bxf3 $1 $14 10. Qxf3 a6) 10. Nb5 $16 {[%emt 0:07:35][%csl LRa7,LRc7]} Qb8 {[%emt 0:05:12]} 11. g4 {[%emt 0:18:57][%cal Od1d4,Bg2g4,Bg4g5][%mdl 32] White is much more active.} Bg6 {[%emt 0:01:15]} 12. g5 $1 $36 {[%emt 0:15:01][%csl Of8][%mdl 2048] Black has a bad bishop Black is under strong pressure.} Ne4 {[%emt 0:06:53]} 13. Nh4 $1 {[%emt 0:02:07]} a6 {[%emt 0:06:12] [#]} 14. Nxg6 $1 {[%emt 0:02:52]} hxg6 {[%emt 0:57:38]} 15. Qd5 {[%emt 0:04:46]} Rh4 {[%emt 0:00:00]} (15... Nxf2 $142 16. Bxf2 e6) 16. O-O-O $1 $18 {[%emt 0:05:25][%csl Gd1][%cal Rd5d7]} Qc8 {[%emt 0:00:00] [#]} 17. Rd4 $1 {[%emt 0:09:28]} e6 $146 {[%emt 0:00:00]} (17... Ndc5 18. Qe5 f6 19. Nc7+ Kf7 20. Qh2 Rb8 21. f3 b5 22. gxf6 gxf6 23. Nd5 e5 24. Rxe4 Nxe4 25. fxe4 Rxe4 {1-0 Baklan,V (2607)-Likavsky,T (2453) Metz op 21st 2003 (5)}) 18. Rxe4 {[%emt 0:00:06]} axb5 {[%emt 0:00:00]} 19. Bxb5 {[%emt 0:02:24]} Rxe4 {[%emt 0:00:00]} 20. Qxe4 {[%emt 0:00:04]} Rxa2 {[%emt 0:00:00][%cal Of8a3]} 21. Kb1 {[%emt 0:06:44][%cal Oh1d1]} Ra5 {[%emt 0:00:00]} 22. Qd3 {[%emt 0:00:37]} Bd6 {[%emt 0:00:00]} 23. Bb6 {[%emt 0:02:15]} (23. b4 Rxb5 24. Qxb5 Qxc3 $11) 23... Rxb5 {[%emt 0:00:00]} 24. Qxb5 {[%emt 0:00:03]} Ke7 {[%emt 0:00:00]} 25. Bd4 {[%emt 0:01:34]} e5 {[%emt 0:00:00]} 26. Be3 {[%emt 0:00:03]} Bc5 {[%emt 0:01:06]} 27. Qc4 {[%emt 0:02:52]} b6 {[%emt 0:05:24]} 28. Rd1 {[%emt 0:00:50] Hoping for b4.} Qb7 {[%emt 0:00:00]} 29. Qd5 {[%emt 0:00:44]} Qc7 {[%emt 0:00:00]} 30. Re1 {[%emt 0:01:04]} Qa7 {[%emt 0:00:00]} 31. Qc6 {[%emt 0:01:20]} Bxe3 {[%emt 0:00:00]} 32. fxe3 {[%emt 0:00:44][%mdl 4096] Endgame KQR-KQN} (32. Rxe3 Qb8 33. Kc2 Qd6 34. Qxd6+ Kxd6 $18) 32... Nc5 {[%emt 0:00:00]} 33. Rd1 {[%emt 0:00:25]} Qb8 {[%emt 0:00:39] Against Qd6+} (33... Ne6 $142 34. Qd6+ Ke8 35. Qc6+ (35. Qxe5 Kf8 $18) 35... Ke7) 34. b4 {[%emt 0:01:25]} Ne6 {[%emt 0:00:12]} 35. h4 {[%emt 0:00:48]} Qa7 {[%emt 0:01:55]} (35... Qc7 $142 36. Qxc7+ Nxc7) 36. Qd6+ {[%emt 0:00:19]} Ke8 {[%emt 0:00:05]} 37. Qxe5 {[%emt 0:01:22]} Qa3 {[%emt 0:00:16]} 38. Qb8+ {[%emt 0:01:27] White mates.} Ke7 {[%emt 0:00:06]} 39. Qd6+ {[%emt 0:00:30]} ({And not} 39. Qxb6 Qb3+ 40. Kc1 Qxc3+ 41. Kb1 Qb3+ 42. Kc1 Qc3+ 43. Kb1 Qb3+ 44. Kc1 Qc3+ $11) 39... Ke8 {[%emt 0:00:02]} 40. Qd7+ {[%emt 0:00:10]} Kf8 {[%emt 0:00:05]} 41. Qc8+ {[%emt 0:50:02] Black did not feel at home in the position after the opening.   Weighted Error Value: White=0.21 (precise) /Black=0.62  Mistake:       	---       	Black=3      Inaccurate:     	---       	Black=1      OK:         	White=11    	Black=9      Best:        	White=2     	Black=2      Strong:       	White=3     	---} 1-0

[Event "4NCL Div 1 2024-25"]
[Site "England"]
[Date "2025.04.05"]
[Round "7.13"]
[White "Sowray, Peter J"]
[Black "Grieve, Harry"]
[Result "1/2-1/2"]
[Annotator "RC"]
[ECO "D00"]
[WhiteElo "2205"]
[BlackElo "2464"]
[PlyCount "97"]
[EventDate "2024.11.23"]
[EventType "team-tourn"]
[EventCountry "ENG"]
[SourceTitle "playchess.com"]
[Source "ChessBase"]
[SourceQuality "1"]
[TimeControl "40/6000+30:3000+30"]

1. d4 {[%emt 0:10:06]} d5 {[%emt 0:10:03]} 2. Nc3 {[%emt 0:00:08]} Nf6 {[%emt 0:00:45]} 3. Bf4 {[%emt 0:00:08]} e6 {[%emt 0:00:06]} 4. e3 {[%emt 0:02:57]} Bb4 {[%emt 0:00:05]} 5. Bd3 {[%emt 0:01:32]} c5 {[%emt 0:00:06]} 6. dxc5 {[%emt 0:01:52]} Bxc3+ {[%emt 0:05:25]} 7. bxc3 {[%emt 0:00:03]} Nbd7 {[%emt 0:00:23]} 8. Nf3 {[%emt 0:06:31]} Qa5 {[%emt 0:11:53]} 9. O-O {[%emt 0:04:27]} Qxc5 {[%emt 0:01:22]} 10. Qe2 {[%emt 0:08:57]} O-O {[%emt 0:02:55]} 11. Rab1 {[%emt 0:07:44]} b6 {[%emt 0:08:26]} 12. Ne5 {[%emt 0:08:17]} Bb7 {[%emt 0:05:44]} 13. Rb4 {[%emt 0:15:52]} Qxc3 {[%emt 0:12:51]} 14. Nxd7 {[%emt 0:01:28]} Nxd7 {[%emt 0:00:02]} 15. Bd6 {[%emt 0:01:32]} f5 {[%emt 0:07:47]} 16. Rb3 {[%emt 0:03:51]} Qf6 {[%emt 0:02:27]} 17. Bxf8 {[%emt 0:00:08]} Qxf8 {[%emt 0:03:24]} 18. Rd1 {[%emt 0:04:35]} Nc5 {[%emt 0:03:08]} 19. Rbb1 {[%emt 0:02:22]} Na4 {[%emt 0:08:13]} 20. Qd2 {[%emt 0:01:58]} Rc8 {[%emt 0:08:02]} 21. Rb3 {[%emt 0:03:08]} Nc5 {[%emt 0:07:15]} 22. Rb4 {[%emt 0:02:30]} Rc7 {[%emt 0:03:30]} 23. Rdb1 {[%emt 0:02:10]} Qc8 {[%emt 0:00:38]} 24. a4 {[%emt 0:01:44]} Ba6 {[%emt 0:01:20]} 25. a5 {[%emt 0:01:49]} Nd7 {[%emt 0:01:54]} 26. axb6 {[%emt 0:02:20]} axb6 {[%emt 0:02:34]} 27. h3 {[%emt 0:02:04]} Kf7 {[%emt 0:01:00]} 28. Qe2 {[%emt 0:00:41]} Bxd3 {[%emt 0:01:14]} 29. cxd3 {[%emt 0:00:32]} g6 {[%emt 0:00:09]} 30. Qb2 {[%emt 0:03:21]} h5 {[%emt 0:00:53]} 31. Qd4 {[%emt 0:00:47]} Rc5 {[%emt 0:00:36]} 32. f4 {[%emt 0:01:26]} h4 {[%emt 0:00:25]} 33. Ra1 {[%emt 0:01:00]} Rc1+ {[%emt 0:00:45]} 34. Kh2 {[%emt 0:01:09]} Rxa1 {[%emt 0:00:50]} 35. Qxa1 {[%emt 0:00:02]} Qc5 {[%emt 0:01:00]} 36. Qe1 {[%emt 0:02:17]} Qa5 {[%emt 0:00:28]} 37. Qb1 {[%emt 0:00:42]} Qc5 {[%emt 0:00:23]} 38. d4 {[%emt 0:00:50]} Qc3 {[%emt 0:00:15]} 39. Rb3 {[%emt 0:00:57]} Qd2 {[%emt 0:00:03]} 40. Qf1 {[%emt 0:01:32]} Nf6 {[%emt 0:00:49]} 41. Qf3 {[%emt 0:26:20]} Ne4 {[%emt 0:22:18]} 42. Rb1 {[%emt 0:04:48]} Ng3 {[%emt 0:09:27]} 43. Rd1 {[%emt 0:00:36]} Qc2 {[%emt 0:05:04]} 44. Re1 {[%emt 0:00:30]} b5 {[%emt 0:08:58]} 45. Qd1 {[%emt 0:01:24]} Qf2 {[%emt 0:00:08]} 46. Qa1 {[%emt 0:01:59]} g5 {[%emt 0:01:17]} 47. Qa7+ {[%emt 0:09:08]} Kg6 {[%emt 0:01:01]} 48. Qe7 {[%emt 0:01:07]} Qxe1 {[%emt 0:01:00]} 49. Qxe6+ {[%emt 0:00:18]} 1/2-1/2

[Event "4NCL Div 1 2024-25"]
[Site "England"]
[Date "2025.04.05"]
[Round "7.14"]
[White "Cyborowski, Lukasz"]
[Black "Zhao, George"]
[Result "1-0"]
[Annotator "RC"]
[ECO "A11"]
[WhiteElo "2454"]
[BlackElo "2233"]
[PlyCount "61"]
[EventDate "2024.11.23"]
[EventType "team-tourn"]
[EventCountry "ENG"]
[SourceTitle "playchess.com"]
[Source "ChessBase"]
[SourceQuality "1"]
[TimeControl "40/6000+30:3000+30"]

1. Nf3 {[%emt 0:10:09]} d5 {[%emt 0:11:19]} 2. e3 {[%emt 0:02:28]} Nf6 {[%emt 0:01:16]} 3. c4 {[%emt 0:00:27]} c6 {[%emt 0:04:07]} 4. Nc3 {[%emt 0:01:44]} Bg4 {[%emt 0:01:26]} 5. cxd5 {[%emt 0:05:28]} cxd5 {[%emt 0:00:57]} 6. Qb3 {[%emt 0:00:46]} Bxf3 {[%emt 0:11:44]} 7. Qxb7 {[%emt 0:04:17]} Nbd7 {[%emt 0:01:36]} 8. gxf3 {[%emt 0:03:22]} e6 {[%emt 0:00:34]} 9. Nb5 {[%emt 0:10:54]} Rc8 {[%emt 0:03:17]} 10. Qxa7 {[%emt 0:03:26]} Bc5 {[%emt 0:01:54]} 11. Qa4 {[%emt 0:00:11]} O-O {[%emt 0:00:31]} 12. Be2 {[%emt 0:03:59]} e5 {[%emt 0:03:33]} 13. b4 {[%emt 0:10:31]} Bb6 {[%emt 0:01:52]} 14. Bb2 {[%emt 0:01:44]} d4 {[%emt 0:05:23]} 15. Qb3 {[%emt 0:02:06]} dxe3 {[%emt 0:03:53]} 16. dxe3 {[%emt 0:02:14]} Qe7 {[%emt 0:03:50]} 17. Rd1 {[%emt 0:02:24]} Rc6 {[%emt 0:03:12]} 18. a4 {[%emt 0:03:24]} Nb8 {[%emt 0:05:17]} 19. a5 {[%emt 0:05:05]} Ba7 {[%emt 0:01:55]} 20. Nxa7 {[%emt 0:03:04]} Qxa7 {[%emt 0:00:21]} 21. Bxe5 {[%emt 0:00:31]} Re8 {[%emt 0:01:24]} 22. Bg3 {[%emt 0:03:12]} Rce6 {[%emt 0:01:33]} 23. O-O {[%emt 0:01:44]} h5 {[%emt 0:00:54]} 24. Bc4 {[%emt 0:04:29]} R6e7 {[%emt 0:00:40]} 25. Bd6 {[%emt 0:01:46]} Rd7 {[%emt 0:01:31]} 26. Bb5 {[%emt 0:02:01]} Re6 {[%emt 0:01:53]} 27. Bxb8 {[%emt 0:01:05]} Qxb8 {[%emt 0:03:14]} 28. Bxd7 {[%emt 0:00:14]} Nxd7 {[%emt 0:00:16]} 29. Rxd7 {[%emt 0:00:24]} Qa8 {[%emt 0:00:15]} 30. Qd5 {[%emt 0:00:37]} Qa6 {[%emt 0:00:25]} 31. b5 {[%emt 0:00:46]} 1-0

[Event "4NCL Div 1 2024-25"]
[Site "England"]
[Date "2025.04.05"]
[Round "7.15"]
[White "Brett, Andrew R"]
[Black "Galyas, Miklos"]
[Result "0-1"]
[Annotator "RC"]
[ECO "D35"]
[WhiteElo "2069"]
[BlackElo "2374"]
[PlyCount "75"]
[EventDate "2024.11.23"]
[EventType "team-tourn"]
[EventCountry "ENG"]
[SourceTitle "playchess.com"]
[Source "ChessBase"]
[SourceQuality "1"]
[TimeControl "40/6000+30:3000+30"]

1. d4 {[%emt 0:10:03]} d5 {[%emt 0:09:50]} 2. c4 {[%emt 0:00:14]} e6 {[%emt 0:00:22]} 3. Nc3 {[%emt 0:00:03]} Nf6 {[%emt 0:00:10]} 4. cxd5 {[%emt 0:00:22]} exd5 {[%emt 0:00:05]} 5. Bg5 {[%emt 0:00:14]} Be6 {[%emt 0:00:17]} 6. Nf3 {[%emt 0:01:38]} Nbd7 {[%emt 0:00:38]} 7. e3 {[%emt 0:01:09]} h6 {[%emt 0:04:04]} 8. Bh4 {[%emt 0:00:34]} g5 {[%emt 0:00:15]} 9. Bg3 {[%emt 0:00:25]} Nh5 {[%emt 0:00:48]} 10. Bd3 {[%emt 0:03:38]} Nxg3 {[%emt 0:01:29]} 11. hxg3 {[%emt 0:00:56]} c6 {[%emt 0:03:11]} 12. Qc2 {[%emt 0:07:57]} Qf6 {[%emt 0:07:56]} 13. a3 {[%emt 0:05:07]} Bg7 {[%emt 0:16:35]} 14. Rc1 {[%emt 0:18:44]} Qe7 {[%emt 0:22:36]} 15. Ne2 {[%emt 0:27:00]} h5 {[%emt 0:06:56]} 16. Bf5 {[%emt 0:04:41]} O-O-O {[%emt 0:01:07]} 17. b4 {[%emt 0:03:17]} Kb8 {[%emt 0:01:01]} 18. Bxe6 {[%emt 0:03:16]} fxe6 {[%emt 0:00:05]} 19. Qd3 {[%emt 0:12:57]} e5 {[%emt 0:05:27]} 20. dxe5 {[%emt 0:00:09]} Nxe5 {[%emt 0:00:08]} 21. Nxe5 {[%emt 0:00:05]} Bxe5 {[%emt 0:00:12]} 22. Nd4 {[%emt 0:01:59]} g4 {[%emt 0:02:14]} 23. Kd2 {[%emt 0:02:27]} Qf6 {[%emt 0:03:22]} 24. Rcf1 {[%emt 0:01:13]} Rde8 {[%emt 0:02:47]} 25. Ne2 {[%emt 0:01:35]} Bc7 {[%emt 0:02:13]} 26. a4 {[%emt 0:00:44]} Qb2+ {[%emt 0:00:40]} 27. Qc2 {[%emt 0:00:28]} Qxb4+ {[%emt 0:00:06]} 28. Qc3 {[%emt 0:00:17]} Re4 {[%emt 0:06:35]} 29. Qxb4 {[%emt 0:01:02]} Rxb4 {[%emt 0:00:02]} 30. Ra1 {[%emt 0:00:12]} Rb2+ {[%emt 0:00:53]} 31. Ke1 {[%emt 0:01:17]} Be5 {[%emt 0:03:28]} 32. f4 {[%emt 0:01:05]} gxf3 {[%emt 0:00:17]} 33. gxf3 {[%emt 0:00:03]} Rb3 {[%emt 0:02:19]} 34. Rd1 {[%emt 0:00:04]} Rxe3 {[%emt 0:00:11]} 35. Kf2 {[%emt 0:00:03]} Ra3 {[%emt 0:00:19]} 36. f4 {[%emt 0:01:02]} Bf6 {[%emt 0:00:33]} 37. Rh3 {[%emt 0:00:18]} h4 {[%emt 0:00:49]} 38. g4 {[%emt 0:00:07]} 0-1

[Event "4NCL Div 1 2024-25"]
[Site "England"]
[Date "2025.04.05"]
[Round "7.16"]
[White "Terbe, Julianna"]
[Black "Bhatia, Kanwal K"]
[Result "1-0"]
[Annotator "ChessBase"]
[ECO "D02"]
[WhiteElo "2225"]
[BlackElo "1976"]
[PlyCount "83"]
[EventDate "2024.11.23"]
[EventType "team-tourn"]
[EventCountry "ENG"]
[SourceTitle "playchess.com"]
[Source "ChessBase"]
[SourceQuality "1"]
[TimeControl "40/6000+30:3000+30"]

1. Nf3 {[%emt 0:10:08]} d5 {[%emt 0:11:01]} 2. d4 {[%emt 0:00:58]} c5 {[%emt 0:00:18]} 3. g3 {[%emt 0:00:21]} cxd4 {[%emt 0:07:09]} 4. Bg2 {[%emt 0:00:12]} Nc6 {[%emt 0:01:39]} 5. Nxd4 {[%emt 0:00:10]} e5 {[%emt 0:03:22]} 6. Nxc6 {[%emt 0:00:07]} bxc6 {[%emt 0:00:06]} 7. c4 {[%emt 0:00:47]} Nf6 {[%emt 0:12:47]} 8. Nc3 {[%emt 0:00:59]} Bb7 {[%emt 0:03:27]} 9. cxd5 {[%emt 0:10:35]} cxd5 {[%emt 0:19:59]} 10. Qa4+ {[%emt 0:24:47]} Qd7 {[%emt 0:02:21]} 11. Qxd7+ {[%emt 0:00:14]} Kxd7 {[%emt 0:00:29]} 12. O-O {[%emt 0:00:15]} Rd8 {[%emt 0:04:25]} 13. Bg5 {[%emt 0:10:01]} Kc7 {[%emt 0:03:46]} 14. Rac1 {[%emt 0:09:41]} Kb8 {[%emt 0:00:55]} 15. Na4 {[%emt 0:09:30]} d4 {[%emt 0:05:49]} 16. Nc5 {[%emt 0:02:09]} Bxg2 {[%emt 0:00:55]} 17. Kxg2 {[%emt 0:00:03]} h6 {[%emt 0:02:57]} 18. Bxf6 {[%emt 0:04:40]} gxf6 {[%emt 0:00:07]} 19. g4 {[%emt 0:02:16]} h5 {[%emt 0:01:15]} 20. h3 {[%emt 0:02:29]} Bh6 {[%emt 0:01:38]} 21. Rc4 {[%emt 0:01:23]} hxg4 {[%emt 0:01:07]} 22. hxg4 {[%emt 0:00:04]} Bf4 {[%emt 0:01:38]} 23. Rh1 {[%emt 0:05:58]} Rxh1 {[%emt 0:07:26]} 24. Kxh1 {[%emt 0:00:01]} Rh8+ {[%emt 0:07:55]} 25. Kg2 {[%emt 0:00:24]} Rh2+ {[%emt 0:03:08]} 26. Kf3 {[%emt 0:00:08]} Rh3+ {[%emt 0:00:15]} 27. Ke4 {[%emt 0:00:41]} Rh2 {[%emt 0:00:44]} 28. Nd3 {[%emt 0:02:13]} Bg5 {[%emt 0:00:37]} 29. a4 {[%emt 0:03:54]} Rg2 {[%emt 0:01:50]} 30. Kf3 {[%emt 0:01:37]} Rg1 {[%emt 0:00:12]} 31. a5 {[%emt 0:02:15]} Ra1 {[%emt 0:00:48]} 32. b4 {[%emt 0:01:07]} Ra2 {[%emt 0:00:43]} 33. Rc6 {[%emt 0:03:04]} Kb7 {[%emt 0:00:44]} 34. Rd6 {[%emt 0:00:11]} Kc7 {[%emt 0:03:23]} 35. Ra6 {[%emt 0:00:14]} Kb8 {[%emt 0:00:06]} 36. Nc5 {[%emt 0:01:36]} Ra3+ {[%emt 0:01:24]} 37. Ke4 {[%emt 0:00:42]} Ra2 {[%emt 0:00:28]} 38. Rc6 {[%emt 0:01:03]} Rxe2+ {[%emt 0:01:06]} 39. Kf3 {[%emt 0:01:33]} Re1 {[%emt 0:00:31]} 40. a6 {[%emt 0:00:18]} Rc1 {[%emt 0:00:17]} 41. Ke4 {[%emt 0:24:35]} Rc3 {[%emt 0:26:12]} 42. Kd5 {[%emt 0:02:45]} 1-0

[Event "4NCL Div 1 2024-25"]
[Site "England"]
[Date "2025.04.05"]
[Round "7.17"]
[White "Larkin, Vladyslav"]
[Black "Ghasi, Ameet K"]
[Result "1/2-1/2"]
[Annotator "TA"]
[ECO "B06"]
[WhiteElo "2455"]
[BlackElo "2503"]
[PlyCount "81"]
[EventDate "2024.11.23"]
[EventType "team-tourn"]
[EventCountry "ENG"]
[SourceTitle "playchess.com"]
[Source "ChessBase"]
[SourceQuality "1"]
[TimeControl "40/6000+30:3000+30"]

{[%evp 9,81,35,38,22,39,17,17,9,15,8,2,2,9,2,9,6,3,0,13,15,16,0,29,33,31,29,19,24,23,14,39,0,19,19,25,25,17,6,12,11,15,22,18,15,14,13,29,0,0,0,0,0,0,0,0,0,0,0,0,0,0,-23,-23,-16,-19,-4,-4,-59,0,0,8,8,8,8]} 1. e4 {[%emt 0:10:06]} g6 {[%emt 0:12:23]} 2. d4 {[%emt 0:00:14]} Bg7 {[%emt 0:00:05]} 3. Nf3 {[%emt 0:05:17]} d6 {[%emt 0:00:50]} 4. Bc4 {[%emt 0:00:15]} e6 {[%emt 0:05:07]} 5. Qe2 {[%emt 0:00:12]} Ne7 {[%emt 0:03:24]} 6. c3 {[%emt 0:07:49] B06: Modern Defence.} Nd7 {[%emt 0:03:54]} 7. e5 $146 {[%emt 0:16:25]} (7. Nbd2 a6 8. Nf1 b5 9. Bd3 Bb7 10. Ng3 c5 11. O-O Qc7 12. a4 c4 13. Bc2 {1-0 Vokhidov,S (2578)-Tomaszewski,K (2317) Titled Tuesday intern op 19th Sep Early blitz 2023 (1)}) 7... a6 {[%emt 0:07:46]} 8. Bf4 {[%emt 0:04:35]} b5 {[%emt 0:03:40] [#] Hoping for ...dxe5.} 9. Bb3 {[%emt 0:00:13]} dxe5 {[%emt 0:08:52]} 10. Nxe5 {[%emt 0:01:36]} Nxe5 {[%emt 0:03:34]} 11. Bxe5 {[%emt 0:00:05]} Bxe5 {[%emt 0:03:30]} 12. Qxe5 {[%emt 0:00:43]} O-O {[%emt 0:00:34]} 13. O-O {[%emt 0:00:42]} Bb7 {[%emt 0:02:14]} 14. Nd2 {[%emt 0:05:55][%cal Bb1d2,Bd2f1,Bf1e3][%mdl 32]} Qd6 {[%emt 0:02:45]} 15. Rfe1 {[%emt 0:01:38]} Rfd8 {[%emt 0:04:49]} 16. Qf6 {[%emt 0:12:40][%cal Re1e6] [#]} Nd5 {[%emt 0:05:15]} 17. Bxd5 {[%emt 0:20:06]} Bxd5 {[%emt 0:00:04]} 18. Nf1 {[%emt 0:00:30]} Qf8 {[%emt 0:03:54]} 19. Ne3 {[%emt 0:02:30] Black is weak on the dark squares} h5 {[%emt 0:02:44]} 20. a3 {[%emt 0:07:56]} Bb7 {[%emt 0:02:25]} 21. Qg5 {[%emt 0:03:30]} Rac8 {[%emt 0:10:33]} 22. b4 {[%emt 0:01:06]} Bc6 {[%emt 0:03:23]} 23. f4 {[%emt 0:00:12]} Kh7 {[%emt 0:07:59]} 24. Rf1 {[%emt 0:08:15]} Rd6 {[%emt 0:00:47]} 25. Rae1 {[%emt 0:00:00]} Qd8 {[%emt 0:01:09]} 26. g4 {[%emt 0:00:00]} f6 {[%emt 0:06:23][%cal Bf7f6,Bf6f5][%mdl 32]} 27. Qh4 {[%emt 0:00:00][%cal Of4f5]} f5 {[%emt 0:00:25]} 28. Qxd8 {[%emt 0:00:00]} Rcxd8 {[%emt 0:00:03]} 29. gxh5 {[%emt 0:00:00]} gxh5 {[%emt 0:00:06]} 30. Kf2 {[%emt 0:00:01][%cal Oa3a4]} Rg8 {[%emt 0:02:40]} 31. Rg1 {[%emt 0:00:07]} Rxg1 {[%emt 0:01:00]} 32. Rxg1 $11 {[%emt 0:00:03][%mdl 4096] Endgame KRB-KRN} Be4 {[%emt 0:00:02]} 33. Ke2 {[%emt 0:00:55]} a5 {[%emt 0:01:03]} 34. Rg5 {[%emt 0:01:55]} Kh6 {[%emt 0:01:22]} 35. Nf1 {[%emt 0:01:04]} axb4 {[%emt 0:00:52]} 36. axb4 {[%emt 0:00:05]} h4 {[%emt 0:00:56] Against Ng3} 37. Nd2 {[%emt 0:00:20] Hoping for Nxe4.} Bd5 {[%emt 0:00:17]} 38. Rg8 {[%emt 0:00:15]} (38. h3 $11) 38... Kh7 {[%emt 0:00:47]} ({Better is} 38... Rc6 $1 $15 39. Kd3 e5 40. Rh8+ Kg7) 39. Rc8 {[%emt 0:00:10] The position is equal.} Rc6 {[%emt 0:00:28]} 40. Kd3 {[%emt 0:00:04]} Kg7 {[%emt 0:00:51]} 41. Rb8 {[%emt 0:51:41] Weighted Error Value: White=0.09 (flawless) /Black=0.05 (flawless)   Mistake:       	White=1     	Black=1      Inaccurate:     	White=2     	Black=1      OK:         	White=16    	Black=19     Best:        	---       	Black=1} 1/2-1/2

[Event "4NCL Div 1 2024-25"]
[Site "England"]
[Date "2025.04.05"]
[Round "7.18"]
[White "Makkar, Rajat"]
[Black "Bottazzi, Ulysse"]
[Result "1/2-1/2"]
[Annotator "RC"]
[ECO "E71"]
[WhiteElo "2432"]
[BlackElo "2344"]
[PlyCount "81"]
[EventDate "2024.11.23"]
[EventType "team-tourn"]
[EventCountry "ENG"]
[SourceTitle "playchess.com"]
[Source "ChessBase"]
[SourceQuality "1"]
[TimeControl "40/6000+30:3000+30"]

1. d4 {[%emt 0:10:04]} Nf6 {[%emt 0:12:08]} 2. c4 {[%emt 0:00:07]} g6 {[%emt 0:00:34]} 3. Nc3 {[%emt 0:00:18]} Bg7 {[%emt 0:00:20]} 4. e4 {[%emt 0:00:13]} d6 {[%emt 0:00:39]} 5. h3 {[%emt 0:00:28]} O-O {[%emt 1:29:19]} 6. Be3 {[%emt 0:00:15]} c5 {[%emt 0:00:00]} 7. d5 {[%emt 0:05:03]} e6 {[%emt 0:00:00]} 8. Bd3 {[%emt 0:02:09]} exd5 {[%emt 0:00:00]} 9. exd5 {[%emt 0:00:09]} Qa5 {[%emt 0:00:00]} 10. Qd2 {[%emt 0:04:34]} Na6 {[%emt 0:00:00]} 11. Nf3 {[%emt 0:04:42]} Nb4 {[%emt 0:00:00]} 12. Bb1 {[%emt 0:05:47]} b5 {[%emt 0:00:00]} 13. O-O {[%emt 0:14:52]} bxc4 {[%emt 0:00:00]} 14. Bh6 {[%emt 0:07:26]} Rb8 {[%emt 0:00:00]} 15. a3 {[%emt 0:10:25]} Nd3 {[%emt 0:00:00]} 16. Bxg7 {[%emt 0:01:38]} Kxg7 {[%emt 0:00:00]} 17. Bxd3 {[%emt 0:00:19]} cxd3 {[%emt 0:00:00]} 18. b4 {[%emt 0:00:08]} Qb6 {[%emt 0:00:00]} 19. Rfe1 {[%emt 0:06:11]} Bb7 {[%emt 0:00:00]} 20. Qxd3 {[%emt 0:06:32]} cxb4 {[%emt 0:00:00]} 21. axb4 {[%emt 0:00:32]} Rfe8 {[%emt 0:00:00]} 22. Ng5 {[%emt 0:04:19]} Qxb4 {[%emt 0:04:16]} 23. Rxe8 {[%emt 0:03:30]} Rxe8 {[%emt 0:00:17]} 24. Rb1 {[%emt 0:09:14]} Qf4 {[%emt 0:00:36]} 25. Ne6+ {[%emt 0:01:44]} fxe6 {[%emt 0:00:54]} 26. Rxb7+ {[%emt 0:00:05]} Kf8 {[%emt 0:03:48]} 27. Ne2 {[%emt 0:04:24]} Qe5 {[%emt 0:00:33]} 28. dxe6 {[%emt 0:03:40]} Rxe6 {[%emt 0:00:25]} 29. Nd4 {[%emt 0:00:09]} Re7 {[%emt 0:00:24]} 30. Rb8+ {[%emt 0:00:05]} Re8 {[%emt 0:00:34]} 31. Nc6 {[%emt 0:00:09]} Qd5 {[%emt 0:00:38]} 32. Qc3 {[%emt 0:02:36]} Qe6 {[%emt 0:00:16]} 33. Rxe8+ {[%emt 0:02:11]} Kxe8 {[%emt 0:00:15]} 34. Nxa7 {[%emt 0:00:29]} Qe5 {[%emt 0:00:47]} 35. Qc8+ {[%emt 0:01:23]} Kf7 {[%emt 0:00:01]} 36. Nc6 {[%emt 0:00:54]} Qe1+ {[%emt 0:01:02]} 37. Kh2 {[%emt 0:00:02]} Qxf2 {[%emt 0:00:02]} 38. Nd8+ {[%emt 0:00:15]} Ke7 {[%emt 0:00:19]} 39. Nc6+ {[%emt 0:00:50]} Kf7 {[%emt 0:00:02]} 40. Nd8+ {[%emt 0:00:09]} Ke7 {[%emt 0:00:55]} 41. Nc6+ {[%emt 0:50:17]} 1/2-1/2